bitfinex/quotes_ETHUSD_20230102
["timestamp","ask_amount","ask_price","bid_price","bid_amount"]
[1672669407557,36.91059815,1218.4,1218.1,7.21379523]
[1672669407733,32.91059815,1218.4,1218.1,7.21379523]
[1672669407947,32.91059815,1218.4,1218.1,15.42329523]
[1672669408422,5.0,1218.2,1218.1,15.42329523]
[1672669408607,5.002,1218.2,1218.1,15.42329523]
[1672669409517,5.002,1218.2,1218.1,7.21379523]
[1672669409733,5.002,1218.2,1218.1,10.153366]
[1672669409939,13.71743,1218.2,1218.1,6.00450486]
[1672669410172,5.5086,1218.2,1218.1,6.00450486]
[1672669413026,5.5086,1218.2,1218.1,14.21400486]
[1672669413198,5.002,1218.2,1218.1,14.21400486]
[1672669413419,5.002,1218.2,1218.1,6.00450486]
[1672669414672,5.002,1218.2,1218.1,14.21400486]
[1672669414865,5.002,1218.2,1218.1,6.00450486]
[1672669415093,5.002,1218.2,1218.1,14.21400486]
[1672669416172,5.002,1218.2,1218.1,14.21183689]
[1672669416570,5.002,1218.2,1218.1,6.00233689]
[1672669417840,6.391077,1218.2,1218.1,6.00233689]
[1672669418053,14.599907,1218.2,1218.1,6.00233689]
[1672669418456,6.391077,1218.2,1218.1,6.00233689]
[1672669419928,14.599907,1218.2,1218.1,6.00233689]
[1672669420321,6.391077,1218.2,1218.1,6.00233689]
[1672669424237,1.391077,1218.2,1218.1,6.00233689]
[1672669424499,1.389077,1218.2,1218.1,6.00233689]
[1672669425237,6.389077,1218.2,1218.1,6.00233689]
[1672669425549,6.391077,1218.2,1218.1,6.00233689]
[1672669431070,1.391077,1218.2,1218.1,6.00233689]
[1672669431263,1.389077,1218.2,1218.1,6.00233689]
[1672669432023,6.389077,1218.2,1218.1,6.00233689]
[1672669432170,6.391077,1218.2,1218.1,6.00233689]
[1672669438075,1.391077,1218.2,1218.1,6.00233689]
[1672669438284,1.389077,1218.2,1218.1,6.00233689]
[1672669439109,6.389077,1218.2,1218.1,6.00233689]
[1672669439390,6.391077,1218.2,1218.1,6.00233689]
[1672669440008,6.391077,1218.2,1218.1,5.99903596]
[1672669445143,1.391077,1218.2,1218.1,5.99903596]
[1672669445473,5.0,1218.2,1218.1,41.62659964]
[1672669445780,5.002,1218.2,1218.1,41.62659964]
[1672669448374,5.002,1218.2,1218.1,41.62008111]
[1672669448585,0.002,1218.2,1218.1,37.26978092]
[1672669448796,5.0,1218.3,1218.1,19.30428092]
[1672669449007,13.21018,1218.3,1218.2,4.14886114]
[1672669449260,21.41836,1218.3,1218.2,7.14886114]
[1672669449571,5.002,1218.3,1218.2,7.21379523]
[1672669450408,5.002,1218.3,1218.2,15.42262523]
[1672669451194,5.002,1218.3,1218.2,23.63145523]
[1672669454276,5.002,1218.3,1218.2,31.84028523]
[1672669455503,0.002,1218.3,1218.2,31.84028523]
[1672669455667,8.2298,1218.5,1218.2,31.84028523]
[1672669456020,11.724029,1218.5,1218.2,31.84028523]
[1672669456590,5.0,1218.3,1218.2,31.84028523]
[1672669456799,5.002,1218.3,1218.2,31.84028523]
[1672669461072,5.002,1218.3,1218.2,7.21379523]
[1672669461908,5.002,1218.3,1218.2,15.42262523]
[1672669462079,5.002,1218.3,1218.2,23.63145523]
[1672669464901,5.002,1218.3,1218.2,23.62784148]
[1672669468836,0.002,1218.3,1218.2,23.62784148]
[1672669469077,30.167199,1218.5,1218.2,23.62784148]
[1672669469871,5.0,1218.3,1218.2,15.41901148]
[1672669470068,4.99903234,1218.3,1218.2,15.41901148]
[1672669470275,4.99703234,1218.3,1218.2,15.41901148]
[1672669473705,4.99703234,1218.3,1218.2,18.35858225]
[1672669476011,0.066,1218.4,1218.2,18.35858225]
[1672669476162,30.167099,1218.5,1218.2,18.35858225]
[1672669476584,21.960049,1218.5,1218.2,18.35858225]
[1672669476809,5.0,1218.3,1218.2,18.35858225]
[1672669477068,5.002,1218.3,1218.2,18.35858225]
[1672669477454,5.002,1218.3,1218.2,14.21333486]
[1672669477637,5.002,1218.3,1218.2,6.00450486]
[1672669482311,5.002,1218.3,1218.2,14.21333486]
[1672669486802,0.002,1218.3,1218.2,18.21333486]
[1672669487029,30.783519,1218.5,1218.2,14.21333486]
[1672669487199,30.783519,1218.5,1218.2,18.21333486]
[1672669487418,30.783519,1218.5,1218.2,14.21333486]
[1672669487655,5.0,1218.3,1218.2,14.21333486]
[1672669487867,5.002,1218.3,1218.2,6.00450486]
[1672669491136,5.002,1218.3,1218.2,6.00210461]
[1672669493528,5.002,1218.3,1218.2,18.21093461]
[1672669493970,5.002,1218.3,1218.2,14.21093461]
[1672669494355,5.002,1218.3,1218.2,6.00210461]
[1672669496260,7.15014,1218.3,1218.2,6.00210461]
[1672669497471,2.15014,1218.3,1218.2,6.00210461]
[1672669497683,2.14814,1218.3,1218.2,6.00210461]
[1672669498431,7.14814,1218.3,1218.2,6.00210461]
[1672669498732,7.15014,1218.3,1218.2,6.00210461]
[1672669499741,15.35829,1218.3,1218.2,6.00210461]
[1672669499951,25.59544,1218.3,1218.2,0.06493409]
[1672669500188,33.80359,1218.3,1218.1,11.90850486]
[1672669500615,25.59544,1218.3,1218.1,11.90850486]
[1672669502309,17.38729,1218.3,1218.1,11.90850486]
[1672669504595,9.17914,1218.3,1218.1,11.90850486]
[1672669505387,17.38738,1218.3,1218.1,11.90850486]
[1672669505603,25.59562,1218.3,1218.1,11.90850486]
[1672669508375,33.80386,1218.3,1218.1,3.00450486]
[1672669508590,33.80386,1218.3,1218.1,2.93957077]
[1672669512511,33.80386,1218.3,1218.1,2.93634666]
[1672669513312,4.053,1218.2,1218.1,2.93634666]
[1672669513684,46.05477659,1218.2,1218.0,0.06493409]
[1672669513899,6.38541266,1218.1,1217.9,11.60218075]
[1672669514207,6.38541266,1218.1,1217.9,3.00128075]
[1672669514208,26.65954,1218.0,1217.9,3.00128075]
[1672669514420,35.148705,1218.0,1217.9,2.93634666]
[1672669514790,26.938525,1218.0,1217.9,2.93634666]
[1672669515416,18.728345,1218.0,1217.9,2.93634666]
[1672669517097,10.518165,1218.0,1217.9,2.93634666]
[1672669519431,18.728345,1218.0,1217.9,2.93634666]
[1672669520062,26.938525,1218.0,1217.9,2.93634666]
[1672669520281,35.148705,1218.0,1217.9,2.93634666]
[1672669521260,35.148705,1218.0,1217.8,0.06493409]
[1672669521261,4.0,1217.9,1217.8,0.06493409]
[1672669521446,43.21276162,1217.9,1217.6,0.098]
[1672669521632,43.21276162,1217.9,1217.5,9.5724]
[1672669521633,43.21076833,1217.9,1217.5,9.5724]
[1672669522037,43.21076833,1217.9,1217.5,21.78585]
[1672669522247,39.21076833,1217.9,1217.5,21.78585]
[1672669522720,30.99991833,1217.9,1217.5,21.78585]
[1672669522942,30.99991833,1217.9,1217.6,9.86020075]
[1672669523128,2.029,1217.8,1217.6,9.95820075]
[1672669523480,5.33189183,1217.8,1217.6,9.95820075]
[1672669523682,5.33389183,1217.8,1217.6,9.95820075]
[1672669523853,5.0,1217.7,1217.6,9.95820075]
[1672669524058,5.002,1217.7,1217.6,5.95820075]
[1672669529137,7.031,1217.7,1217.6,0.098]
[1672669529302,7.031,1217.7,1217.4,2.86020075]
[1672669529303,41.6810079,1217.7,1217.4,2.86020075]
[1672669529511,8.21355,1217.5,1217.4,2.86020075]
[1672669529785,13.21555,1217.5,1217.4,2.86020075]
[1672669529978,16.450705,1217.5,1217.4,2.86020075]
[1672669530591,16.450705,1217.5,1217.4,5.86020075]
[1672669530763,16.450705,1217.5,1217.4,5.95820075]
[1672669532172,8.237155,1217.5,1217.4,5.95820075]
[1672669532551,16.450705,1217.5,1217.4,5.95820075]
[1672669532761,8.237155,1217.5,1217.4,5.95820075]
[1672669533226,5.002,1217.5,1217.4,5.95820075]
[1672669537314,13.21555,1217.5,1217.4,0.098]
[1672669537544,29.64265,1217.5,1217.3,0.21572238]
[1672669537784,5.0,1217.4,1217.3,0.21572238]
[1672669538074,7.966265,1217.4,1217.3,0.21572238]
[1672669538385,16.180485,1217.4,1217.3,0.21572238]
[1672669539476,7.966265,1217.4,1217.3,0.21572238]
[1672669543214,5.002,1217.4,1217.3,24.86042238]
[1672669543425,5.002,1217.4,1217.3,12.52862238]
[1672669543614,5.002,1217.4,1217.3,16.74352238]
[1672669543829,5.002,1217.4,1217.3,8.52862238]
[1672669545688,5.7105,1217.4,1217.3,0.31372238]
[1672669545951,5.7105,1217.4,1217.3,0.21572238]
[1672669546333,5.7105,1217.4,1217.3,0.21221301]
[1672669552433,13.92472,1217.4,1217.3,0.21221301]
[1672669553005,8.92472,1217.4,1217.3,0.21221301]
[1672669553656,13.92472,1217.4,1217.3,0.21221301]
[1672669558320,5.7105,1217.4,1217.3,0.21221301]
[1672669558753,5.002,1217.4,1217.3,0.21221301]
[1672669570423,29.64466,1217.4,1217.3,0.21002015]
[1672669571253,21.43044,1217.4,1217.3,0.21002015]
[1672669571521,13.21622,1217.4,1217.3,0.21002015]
[1672669571671,16.388922,1217.4,1217.3,0.21002015]
[1672669575797,8.174702,1217.4,1217.3,0.21002015]
[1672669576402,16.388922,1217.4,1217.3,0.21002015]
[1672669577504,3.174702,1217.4,1217.3,0.21002015]
[1672669577715,3.172702,1217.4,1217.3,0.21002015]
[1672669578685,8.172702,1217.4,1217.3,0.21002015]
[1672669578966,8.174702,1217.4,1217.3,0.21002015]
[1672669580997,17.005822,1217.4,1217.3,0.21002015]
[1672669581218,8.791602,1217.4,1217.3,0.21002015]
[1672669581414,17.005822,1217.4,1217.3,0.21002015]
[1672669582821,8.791602,1217.4,1217.3,0.21002015]
[1672669583600,8.791602,1217.4,1217.3,8.42492015]
[1672669583891,5.6189,1217.4,1217.3,8.52292015]
[1672669584022,5.002,1217.4,1217.3,8.52292015]
[1672669584230,5.002,1217.4,1217.3,0.30802015]
[1672669584448,5.002,1217.4,1217.3,0.21002015]
[1672669584903,5.002,1217.4,1217.3,16.63982015]
[1672669585098,5.002,1217.4,1217.3,16.73782015]
[1672669585961,5.002,1217.4,1217.3,0.30802015]
[1672669586239,5.002,1217.4,1217.3,0.21002015]
[1672669586700,5.77219,1217.4,1217.3,0.21002015]
[1672669587696,22.20063,1217.4,1217.3,0.21002015]
[1672669588115,30.41485,1217.4,1217.3,0.21002015]
[1672669588381,13.98641,1217.4,1217.3,0.21002015]
[1672669589007,22.20063,1217.4,1217.3,0.21002015]
[1672669590695,22.20263,1217.4,1217.3,0.21002015]
[1672669590908,22.20063,1217.4,1217.3,0.21002015]
[1672669593055,13.98641,1217.4,1217.3,0.21002015]
[1672669594322,13.98641,1217.4,1217.3,0.20618025]
[1672669595318,5.77219,1217.4,1217.3,0.20618025]
[1672669595898,13.98641,1217.4,1217.3,0.20618025]
[1672669600157,8.98641,1217.4,1217.3,0.20618025]
[1672669600970,13.98641,1217.4,1217.3,0.20618025]
[1672669601910,22.20063,1217.4,1217.3,0.20618025]
[1672669602356,26.25263,1217.4,1217.3,0.06510025]
[1672669605457,34.46685,1217.4,1217.3,0.06510025]
[1672669611026,38.82366872,1217.4,1217.3,0.06510025]
[1672669611393,34.46685,1217.4,1217.3,0.06510025]
[1672669611560,38.82033161,1217.4,1217.3,0.06510025]
[1672669611754,34.46351289,1217.4,1217.3,0.06510025]
[1672669613559,38.82033161,1217.4,1217.3,0.06510025]
[1672669613807,34.46351289,1217.4,1217.3,0.06510025]
[1672669615222,29.46351289,1217.4,1217.3,0.06510025]
[1672669616318,34.46351289,1217.4,1217.3,0.06510025]
[1672669622591,29.46351289,1217.4,1217.3,0.06510025]
[1672669623332,34.46351289,1217.4,1217.3,0.06510025]
[1672669623759,32.44051289,1217.4,1217.3,0.06510025]
[1672669623966,32.44251289,1217.4,1217.3,0.06510025]
[1672669624186,32.44051289,1217.4,1217.3,0.06510025]
[1672669624909,36.58937403,1217.4,1217.3,0.06510025]
[1672669629216,31.58937403,1217.4,1217.3,0.06510025]
[1672669629430,35.94619275,1217.4,1217.3,0.06510025]
[1672669629670,31.58937403,1217.4,1217.3,0.06510025]
[1672669630247,36.58937403,1217.4,1217.3,0.06510025]
[1672669630893,36.81937403,1217.4,1217.3,0.06510025]
[1672669631110,41.17619275,1217.4,1217.3,0.06510025]
[1672669632140,36.81937403,1217.4,1217.3,0.06510025]
[1672669632350,41.17619275,1217.4,1217.3,0.06510025]
[1672669632769,36.81937403,1217.4,1217.3,0.06510025]
[1672669633081,41.17619275,1217.4,1217.3,0.06510025]
[1672669635723,36.81937403,1217.4,1217.3,0.06510025]
[1672669635902,41.17619275,1217.4,1217.3,0.06510025]
[1672669636386,43.20119275,1217.4,1217.3,0.06296436]
[1672669640950,38.84437403,1217.4,1217.3,0.06296436]
[1672669642129,43.20119275,1217.4,1217.3,0.06296436]
[1672669645790,48.12619275,1217.4,1217.3,0.06296436]
[1672669647475,23.48353275,1217.4,1217.3,0.06296436]
[1672669647635,39.91197275,1217.4,1217.3,0.06296436]
[1672669648050,48.12619275,1217.4,1217.3,0.06296436]
[1672669649411,55.22159127,1217.4,1217.3,0.06296436]
[1672669649853,48.12619275,1217.4,1217.3,0.06296436]
[1672669655358,43.12619275,1217.4,1217.3,0.06296436]
[1672669656434,48.12619275,1217.4,1217.3,0.06296436]
[1672669657445,55.22159127,1217.4,1217.3,0.06296436]
[1672669658129,48.12619275,1217.4,1217.3,0.06296436]
[1672669658499,48.12619275,1217.4,1217.3,0.06029219]
[1672669658846,55.22159127,1217.4,1217.3,0.06029219]
[1672669659231,76.83849127,1217.4,1217.3,0.06029219]
[1672669660521,35.05323255,1217.4,1217.3,0.06029219]
[1672669660725,34.43633255,1217.4,1217.3,0.06029219]
[1672669660936,27.34093403,1217.4,1217.1,8.23299219]
[1672669661189,5.0,1217.2,1217.1,8.23899219]
[1672669661389,5.006,1217.2,1217.1,0.02321219]
[1672669661606,5.006,1217.2,1217.0,27.53323294]
[1672669661815,5.006,1217.2,1217.0,19.31657294]
[1672669661990,5.006,1217.2,1217.0,27.53349294]
[1672669662697,5.006,1217.2,1217.1,12.21625]
[1672669662910,5.006,1217.2,1217.1,30.70096219]
[1672669663170,5.006,1217.2,1217.1,22.48471219]
[1672669663388,5.006,1217.2,1217.1,14.26846219]
[1672669663552,13.22157,1217.2,1217.1,2.05221219]
[1672669663765,29.65271,1217.2,1217.0,8.91241294]
[1672669664590,21.43714,1217.2,1217.0,8.91241294]
[1672669666282,7.977248,1217.2,1217.0,8.91241294]
[1672669666860,16.192878,1217.2,1217.0,8.91241294]
[1672669667438,7.977248,1217.2,1217.0,8.91241294]
[1672669669886,7.977248,1217.2,1217.0,17.12926294]
[1672669670533,5.006,1217.2,1217.0,17.12926294]
[1672669671586,5.006,1217.2,1217.0,25.34618294]
[1672669671791,5.006,1217.2,1217.0,33.56310294]
[1672669672530,0.006,1217.2,1217.1,4.0]
[1672669672740,26.02926289,1217.4,1217.1,4.0]
[1672669672741,26.03526289,1217.4,1217.1,4.0]
[1672669672954,4.37886114,1217.3,1217.1,4.0]
[1672669673101,0.83485289,1217.4,1217.2,8.21557]
[1672669673311,5.0,1217.3,1217.2,8.23878219]
[1672669673579,5.006,1217.3,1217.2,8.09770219]
[1672669673962,5.006,1217.3,1217.2,16.31327219]
[1672669675378,5.006,1217.3,1217.2,8.09770219]
[1672669675733,5.006,1217.3,1217.2,7.95662219]
[1672669677653,5.006,1217.3,1217.2,7.81554219]
[1672669677865,5.006,1217.3,1217.2,16.03111219]
[1672669678713,5.006,1217.3,1217.2,7.81554219]
[1672669679234,5.006,1217.3,1217.2,0.02321219]
[1672669679350,5.006,1217.3,1217.1,35.91613219]
[1672669679758,5.006,1217.3,1217.2,8.21557]
[1672669679879,5.006,1217.3,1217.2,8.23878219]
[1672669680511,21.4358,1217.3,1217.2,0.02321219]
[1672669680771,21.4358,1217.3,1217.1,11.2455]
[1672669680772,24.23631361,1217.3,1217.1,14.76871219]
[1672669681015,5.0,1217.2,1217.1,11.26871219]
[1672669681296,21.43714,1217.2,1217.1,11.26871219]
[1672669681716,13.22157,1217.2,1217.1,11.26871219]
[1672669681892,13.22157,1217.2,1217.1,2.04621219]
[1672669682081,13.22157,1217.2,1217.1,2.023]
[1672669682288,5.006,1217.2,1217.1,2.023]
[1672669682766,21.43714,1217.2,1217.1,2.023]
[1672669683613,29.65271,1217.2,1217.1,2.023]
[1672669683771,29.65271,1217.2,1217.0,8.91241294]
[1672669685031,29.65271,1217.2,1217.0,4.91241294]
[1672669685293,29.65271,1217.2,1217.0,4.88920075]
[1672669685487,29.65271,1217.2,1217.0,8.88920075]
[1672669685831,29.65271,1217.2,1217.0,8.91241294]
[1672669686598,29.65271,1217.2,1217.0,4.91241294]
[1672669686809,29.65271,1217.2,1217.0,4.88920075]
[1672669687351,29.65271,1217.2,1217.0,8.88920075]
[1672669687692,29.65271,1217.2,1217.0,4.91241294]
[1672669688020,29.65271,1217.2,1217.0,4.88920075]
[1672669688471,29.65271,1217.2,1217.0,2.86020075]
[1672669689701,21.43714,1217.2,1217.0,2.86020075]
[1672669689991,32.90396536,1217.2,1217.0,2.86020075]
[1672669690197,24.68839536,1217.2,1217.0,2.86020075]
[1672669690625,19.68839536,1217.2,1217.0,2.86020075]
[1672669690869,5.0,1217.1,1217.0,2.86020075]
[1672669691020,5.0,1217.1,1217.0,5.86020075]
[1672669691021,5.006,1217.1,1217.0,5.86020075]
[1672669691383,5.006,1217.1,1217.0,5.88341294]
[1672669693579,5.006,1217.1,1217.0,14.10033294]
[1672669695862,5.006,1217.1,1217.0,26.31725294]
[1672669696285,5.006,1217.1,1217.0,36.56317294]
[1672669696496,5.006,1217.1,1217.0,36.56534434]
[1672669697199,5.006,1217.1,1217.0,40.92008748]
[1672669697343,5.006,1217.1,1217.0,43.1994713]
[1672669699259,5.006,1217.1,1217.0,38.84472816]
[1672669700551,5.006,1217.1,1217.0,43.19735302]
[1672669700705,5.006,1217.1,1217.0,42.9935893]
[1672669700916,5.006,1217.1,1217.0,47.34621083]
[1672669701336,5.006,1217.1,1217.0,47.34293956]
[1672669701815,5.006,1217.1,1217.0,42.99031803]
[1672669702712,5.006,1217.1,1217.0,40.96131803]
[1672669706438,0.006,1217.1,1217.0,45.31434474]
[1672669706653,16.14115,1217.5,1217.1,4.0]
[1672669706857,16.69805,1217.5,1217.2,8.21544]
[1672669707017,16.69805,1217.5,1217.2,8.23865219]
[1672669707224,16.69805,1217.5,1217.2,0.02321219]
[1672669707453,5.0,1217.3,1217.1,35.70717219]
[1672669707667,5.006,1217.3,1217.1,35.70717219]
[1672669709289,5.006,1217.3,1217.1,35.70752219]
[1672669709901,5.006,1217.3,1217.1,36.11685567]
[1672669714646,5.006,1217.3,1217.2,6.85692948]
[1672669714797,5.006,1217.3,1217.2,6.88014167]
[1672669715007,0.006,1217.3,1217.2,6.88014167]
[1672669715334,24.91189,1217.5,1217.2,6.88014167]
[1672669715537,20.219427,1217.5,1217.2,15.09553167]
[1672669716097,5.0,1217.3,1217.2,15.09553167]
[1672669716311,5.006,1217.3,1217.2,6.88014167]
[1672669717775,5.006,1217.3,1217.2,2.88014167]
[1672669717996,5.006,1217.3,1217.2,2.85692948]
[1672669718516,5.006,1217.3,1217.2,11.07249948]
[1672669718703,5.006,1217.3,1217.2,11.09571167]
[1672669719318,5.006,1217.3,1217.2,15.09571167]
[1672669719732,5.006,1217.3,1217.2,31.52685167]
[1672669721363,5.006,1217.3,1217.2,47.32190311]
[1672669722102,0.066,1217.4,1217.3,28.6447]
[1672669722315,8.7557,1217.7,1217.3,38.0517936]
[1672669722316,8.8217,1217.7,1217.3,38.0517936]
[1672669722684,8.7577,1217.7,1217.4,2.019]
[1672669722871,8.1409,1217.7,1217.5,24.64065]
[1672669723007,8.1409,1217.7,1217.5,24.66386219]
[1672669723696,0.002,1217.7,1217.5,24.66386219]
[1672669723929,5.0,1217.6,1217.5,24.66386219]
[1672669724224,5.002,1217.6,1217.5,24.66386219]
[1672669729313,0.002,1217.6,1217.5,24.66386219]
[1672669729524,8.3521,1217.8,1217.5,24.66386219]
[1672669730346,5.0,1217.6,1217.5,24.66386219]
[1672669730566,5.002,1217.6,1217.5,24.66386219]
[1672669730712,5.002,1217.6,1217.5,0.02321219]
[1672669730918,5.002,1217.6,1217.5,8.21355]
[1672669731203,5.002,1217.6,1217.5,8.23676219]
[1672669731931,13.21487,1217.6,1217.5,0.02321219]
[1672669732241,13.21487,1217.6,1217.4,2.85692948]
[1672669732465,21.42774,1217.6,1217.4,2.85692948]
[1672669733075,5.002,1217.6,1217.4,2.85692948]
[1672669735241,5.002,1217.6,1217.4,6.85692948]
[1672669735454,5.002,1217.6,1217.4,15.09425167]
[1672669736006,13.21503,1217.6,1217.4,2.88014167]
[1672669736213,29.64109,1217.6,1217.4,2.85692948]
[1672669736392,13.21503,1217.6,1217.4,2.85692948]
[1672669736603,5.002,1217.6,1217.4,2.85692948]
[1672669736809,13.154574,1217.6,1217.4,2.85692948]
[1672669737025,13.154574,1217.6,1217.4,6.85692948]
[1672669737234,4.941534,1217.6,1217.4,6.88014167]
[1672669737479,4.939534,1217.6,1217.4,6.88014167]
[1672669737692,4.939534,1217.6,1217.4,15.09435167]
[1672669738073,4.939534,1217.6,1217.4,23.30857167]
[1672669738293,4.939534,1217.6,1217.4,31.52279167]
[1672669742166,4.939534,1217.6,1217.4,2.88014167]
[1672669742380,4.939534,1217.6,1217.4,6.85692948]
[1672669742639,4.939534,1217.6,1217.4,15.09428167]
[1672669744092,4.939534,1217.6,1217.4,6.88014167]
[1672669745216,26.73281,1217.7,1217.4,6.88014167]
[1672669745456,30.379801,1217.7,1217.4,6.88014167]
[1672669745886,30.379801,1217.7,1217.4,2.88014167]
[1672669746066,30.379801,1217.7,1217.4,2.85692948]
[1672669746289,5.0,1217.5,1217.4,2.85692948]
[1672669746580,5.002,1217.5,1217.4,5.85692948]
[1672669746831,5.002,1217.5,1217.4,5.88014167]
[1672669750419,5.002,1217.5,1217.4,14.09436167]
[1672669750731,5.002,1217.5,1217.4,5.88014167]
[1672669751343,5.002,1217.5,1217.4,14.09436167]
[1672669751676,5.002,1217.5,1217.4,22.30858167]
[1672669752884,5.002,1217.5,1217.4,14.09436167]
[1672669753827,5.002,1217.5,1217.4,5.88014167]
[1672669754300,5.002,1217.5,1217.4,14.09436167]
[1672669754990,5.002,1217.5,1217.4,5.88014167]
[1672669756616,5.002,1217.5,1217.4,30.52280167]
[1672669757657,5.002,1217.5,1217.4,14.09436167]
[1672669757848,5.002,1217.5,1217.4,14.09136368]
[1672669758249,5.002,1217.5,1217.4,22.30558368]
[1672669758467,5.002,1217.5,1217.4,14.09136368]
[1672669759291,5.002,1217.5,1217.4,22.30558368]
[1672669759712,5.002,1217.5,1217.4,14.09136368]
[1672669759921,5.002,1217.5,1217.4,18.09136368]
[1672669760572,5.002,1217.5,1217.4,14.09136368]
[1672669761874,5.5086,1217.5,1217.4,5.87714368]
[1672669762048,5.5086,1217.5,1217.4,2.87714368]
[1672669762257,5.5086,1217.5,1217.4,2.85393149]
[1672669769331,13.72215,1217.5,1217.4,2.85393149]
[1672669769503,5.5086,1217.5,1217.4,2.85393149]
[1672669770296,5.002,1217.5,1217.4,2.85393149]
[1672669770652,5.002,1217.5,1217.4,11.06815149]
[1672669770924,5.002,1217.5,1217.4,11.09136368]
[1672669771975,5.002,1217.5,1217.4,2.87714368]
[1672669772288,5.002,1217.5,1217.4,2.85393149]
[1672669774270,6.531302,1217.5,1217.4,2.85393149]
[1672669775130,5.002,1217.5,1217.4,2.85393149]
[1672669776338,7.025,1217.5,1217.4,2.85393149]
[1672669776753,7.025,1217.5,1217.4,11.06815149]
[1672669777003,7.025,1217.5,1217.4,11.09136368]
[1672669777172,7.025,1217.5,1217.4,2.87714368]
[1672669777382,7.027,1217.5,1217.4,2.85393149]
[1672669777627,7.025,1217.5,1217.4,2.85393149]
[1672669777838,12.5187391,1217.5,1217.3,24.66681219]
[1672669778050,2.02,1217.4,1217.3,0.02321219]
[1672669778238,1.36536021,1217.3,1217.2,14.09266368]
[1672669778660,1.36536021,1217.3,1217.2,22.30823368]
[1672669778874,1.36536021,1217.3,1217.2,30.52380368]
[1672669779278,6.36536021,1217.3,1217.2,22.30823368]
[1672669779486,6.36536021,1217.3,1217.2,14.09266368]
[1672669780171,5.00336021,1217.3,1217.2,22.30823368]
[1672669780340,5.00336021,1217.3,1217.2,14.09266368]
[1672669780554,5.00336021,1217.3,1217.2,30.52380368]
[1672669783431,5.00336021,1217.3,1217.2,30.52008711]
[1672669783813,4.99977106,1217.3,1217.2,30.52008711]
[1672669784483,4.99977106,1217.3,1217.2,22.30451711]
[1672669784641,4.99977106,1217.3,1217.2,19.30823368]
[1672669786071,13.21467106,1217.3,1217.2,2.87714368]
[1672669786256,4.99977106,1217.3,1217.2,2.85393149]
[1672669787635,13.21467106,1217.3,1217.2,2.85393149]
[1672669789180,4.99977106,1217.3,1217.2,2.85393149]
[1672669793795,13.21467106,1217.3,1217.2,2.85393149]
[1672669794678,21.42957106,1217.3,1217.2,2.85393149]
[1672669795906,8.17279017,1217.3,1217.2,2.85393149]
[1672669796122,13.21467106,1217.3,1217.2,2.85393149]
[1672669796350,17.21467106,1217.3,1217.2,2.85393149]
[1672669796510,13.21467106,1217.3,1217.2,2.85393149]
[1672669796725,4.99977106,1217.3,1217.2,2.85393149]
[1672669797986,18.5152,1217.4,1217.2,2.85393149]
[1672669798253,25.73264114,1217.4,1217.2,2.85393149]
[1672669798827,17.51802114,1217.4,1217.2,2.85393149]
[1672669799038,9.0,1217.3,1217.2,2.85393149]
[1672669799516,5.0,1217.3,1217.2,2.85393149]
[1672669802243,5.0,1217.3,1217.2,11.06950149]
[1672669802459,5.0,1217.3,1217.2,11.09271368]
[1672669802633,5.0,1217.3,1217.2,27.52385368]
[1672669803589,5.0,1217.3,1217.2,19.30828368]
[1672669804145,5.0,1217.3,1217.2,27.52385368]
[1672669806738,5.0,1217.3,1217.2,19.30828368]
[1672669808203,5.0,1217.3,1217.2,19.30535468]
[1672669811992,5.0,1217.3,1217.2,11.08978468]
[1672669812554,0.066,1217.4,1217.2,15.08978468]
[1672669812764,5.0,1217.3,1217.2,11.08978468]
[1672669814366,5.0,1217.3,1217.2,2.87421468]
[1672669814575,5.002,1217.3,1217.2,2.85100249]
[1672669814786,5.0,1217.3,1217.2,11.06657249]
[1672669814952,5.0,1217.3,1217.2,11.08978468]
[1672669815169,5.0,1217.3,1217.2,15.08978468]
[1672669816005,5.0,1217.3,1217.2,11.08978468]
[1672669817516,5.0,1217.3,1217.2,15.08978468]
[1672669817725,5.0,1217.3,1217.2,6.87421468]
[1672669817940,5.0,1217.3,1217.2,15.08978468]
[1672669818484,5.0,1217.3,1217.2,23.30535468]
[1672669818633,5.0,1217.3,1217.2,31.52092468]
[1672669818841,0.066,1217.4,1217.2,31.52092468]
[1672669819051,2.029,1217.5,1217.2,31.52092468]
[1672669819286,5.727311,1217.5,1217.2,31.52092468]
[1672669819895,5.0,1217.3,1217.2,31.52092468]
[1672669820153,5.0,1217.3,1217.2,27.52092468]
[1672669820297,5.0,1217.3,1217.2,19.30535468]
[1672669824008,5.0,1217.3,1217.2,11.08978468]
[1672669825581,5.0,1217.3,1217.2,15.08978468]
[1672669825784,5.0,1217.3,1217.2,11.08978468]
[1672669825996,5.0,1217.3,1217.2,15.08978468]
[1672669826460,5.0,1217.3,1217.2,11.08978468]
[1672669827251,5.0,1217.3,1217.2,15.08978468]
[1672669828443,5.0,1217.3,1217.2,23.30535468]
[1672669828806,5.0,1217.3,1217.2,19.30535468]
[1672669829498,5.0,1217.3,1217.2,11.08978468]
[1672669829922,5.0,1217.3,1217.2,11.08772893]
[1672669830128,5.0,1217.3,1217.2,15.08772893]
[1672669830962,5.0,1217.3,1217.2,23.30329893]
[1672669831491,5.0,1217.3,1217.2,11.08772893]
[1672669831646,5.5066,1217.3,1217.2,2.87215893]
[1672669831864,5.5066,1217.3,1217.2,27.49565674]
[1672669832062,5.5066,1217.3,1217.2,27.51886893]
[1672669833576,5.5086,1217.3,1217.2,27.78357441]
[1672669833800,5.5066,1217.3,1217.2,27.78557441]
[1672669835608,5.5066,1217.3,1217.2,11.35443441]
[1672669835922,5.5066,1217.3,1217.2,19.57000441]
[1672669837311,5.5066,1217.3,1217.2,3.13886441]
[1672669837612,5.5066,1217.3,1217.2,3.11565222]
[1672669837768,5.5066,1217.3,1217.2,11.33122222]
[1672669837979,5.5066,1217.3,1217.2,11.35443441]
[1672669839505,5.5066,1217.3,1217.2,19.57000441]
[1672669839695,5.0,1217.3,1217.2,19.57000441]